fUST/lending_fUST_20240813
["ID","MTS","AMOUNT","RATE_DAILY","PERIOD"]
[334715455,1723499440211,-500.0,0.00014507,2]
[334715456,1723499440221,-500.0,0.00014507,2]
[334715457,1723499440231,-500.0,0.00014507,2]
[334715458,1723499440240,-500.0,0.00014507,2]
[334715459,1723499440251,-500.0,0.00014507,2]
[334715460,1723499440262,-1356.99,0.00014507,2]
[334715461,1723499440271,-719.44,0.00014507,2]
[334715462,1723499440280,-500.0,0.00014507,2]
[334715463,1723499440289,-500.0,0.00014507,2]
[334715464,1723499440298,-819.27,0.00014507,2]
[334715465,1723499440307,-500.0,0.00014507,2]
[334715466,1723499440316,-500.0,0.00014507,2]
[334715467,1723499440325,-500.0,0.00014507,2]
[334715468,1723499440334,-500.0,0.00014507,2]
[334715469,1723499440344,-500.0,0.00014507,2]
[334715470,1723499440354,-2364.02,0.00014507,2]
[334715471,1723499440364,-500.0,0.00014507,2]
[334715472,1723499440374,-3443.49,0.00014507,2]
[334715473,1723499440383,-584.57,0.00014507,2]
[334715474,1723499440392,-737.24,0.00014507,2]
[334715475,1723499440402,-194.48696844,0.00014507,2]
[334715476,1723499440411,-87521.0385155,0.00014508,2]
[334715477,1723499440566,-767.2757791,0.00014508,2]
[334715478,1723499440579,-24044.8463344,0.00014508,2]
[334715479,1723499440592,-998.50224663,0.00014515,2]
[334715480,1723499440603,-500.0,0.00014515,2]
[334715481,1723499440614,-1127.17,0.00014516,2]
[334715482,1723499440624,-500.0,0.00014516,2]
[334715483,1723499440635,-500.0,0.00014516,2]
[334715484,1723499440646,-524.95,0.00014516,2]
[334715485,1723499440657,-501.44447813,0.00014516,2]
[334715488,1723499440669,-500.0,0.00014516,2]
[334715490,1723499440830,-530.57,0.00014516,2]
[334715491,1723499440839,-500.0,0.00014516,2]
[334715492,1723499440849,-500.0,0.00014516,2]
[334715493,1723499440858,-1033.61,0.00014516,2]
[334715494,1723499440867,-1974.47,0.00014516,2]
[334715495,1723499440878,-3215.38,0.00014516,2]
[334715496,1723499440888,-500.0,0.00014516,2]
[334715497,1723499440898,-1544.88,0.00014516,2]
[334715498,1723499440910,-500.0,0.00014516,2]
[334715499,1723499440920,-500.0,0.00014516,2]
[334715500,1723499440930,-500.0,0.00014516,2]
[334715501,1723499440941,-500.0,0.00014516,2]
[334715502,1723499440951,-500.0,0.00014516,2]
[334715503,1723499440962,-500.0,0.00014516,2]
[334715504,1723499440972,-1013.49,0.00014516,2]
[334715505,1723499440983,-151.0,0.00014516,2]
[334715506,1723499440994,-500.0,0.00014516,2]
[334715507,1723499441005,-151.0,0.00014516,2]
[334715508,1723499441014,-151.0,0.00014516,2]
[334715509,1723499441023,-500.0,0.00014517,2]
[334715510,1723499441033,-500.0,0.00014517,2]
[334715511,1723499441042,-776.61,0.00014517,2]
[334715512,1723499441053,-500.0,0.00014517,2]
[334715513,1723499441062,-500.0,0.00014517,2]
[334715514,1723499441073,-500.0,0.00014517,2]
[334715515,1723499441083,-500.0,0.00014517,2]
[334715516,1723499441094,-572.72,0.00014517,2]
[334715517,1723499441105,-500.0,0.00014517,2]
[334715518,1723499441117,-500.0,0.00014517,2]
[334715519,1723499441127,-500.0,0.00014517,2]
[334715520,1723499441138,-500.0,0.00014517,2]
[334715521,1723499441148,-500.0,0.00014517,2]
[334715522,1723499441158,-500.0,0.00014517,2]
[334715523,1723499441168,-500.0,0.00014517,2]
[334715524,1723499441178,-500.0,0.00014517,2]
[334715525,1723499441187,-163.24352531,0.00014517,2]
[334715526,1723499441197,-507.40482495,0.00014517,2]
[334715527,1723499441207,-500.0,0.00014517,2]
[334715528,1723499441217,-500.0,0.00014517,2]
[334715529,1723499441227,-500.0,0.00014517,2]
[334715530,1723499441239,-505.76043668,0.00014517,2]
[334715531,1723499441250,-500.0,0.00014517,2]
[334715532,1723499441261,-808.19,0.00014517,2]
[334715533,1723499441272,-500.0,0.00014517,2]
[334715534,1723499441282,-500.0,0.00014517,2]
[334715535,1723499441292,-500.0,0.00014517,2]
[334715536,1723499441303,-500.0,0.00014517,2]
[334715537,1723499441314,-469.82258987,0.00014517,2]
[334715538,1723499441324,-545.30960326,0.00014517,2]
[334715539,1723499441335,-500.0,0.00014517,2]
[334715540,1723499441346,-500.0,0.00014517,2]
[334715541,1723499441355,-500.0,0.00014517,2]
[334715542,1723499441366,-500.0,0.00014517,2]
[334715543,1723499441376,-500.0,0.00014517,2]
[334715544,1723499441385,-500.0,0.00014517,2]
[334715545,1723499441394,-500.0,0.00014517,2]
[334715546,1723499441403,-500.0,0.00014517,2]
[334715547,1723499441412,-559.40120012,0.00014517,2]
[334715548,1723499441422,-377.8245219,0.00014517,2]
[334715549,1723499441431,-500.0,0.00014517,2]
[334715550,1723499441440,-500.0,0.00014517,2]
[334715551,1723499441450,-500.0,0.00014517,2]
[334715552,1723499441462,-500.0,0.00014517,2]
[334715553,1723499441472,-1283.33,0.00014517,2]
[334715554,1723499441482,-500.0,0.00014517,2]
[334715555,1723499441492,-500.0,0.00014517,2]
[334715556,1723499441502,-1118.13,0.00014517,2]
[334715557,1723499441511,-500.0,0.00014517,2]
[334715558,1723499441520,-2214.38,0.00014517,2]
[334715559,1723499441529,-5950.02,0.00014517,2]
[334715560,1723499441539,-500.0,0.00014517,2]
[334715561,1723499441548,-500.0,0.00014517,2]
[334715562,1723499441557,-1174.05,0.00014517,2]
[334715563,1723499441566,-500.0,0.00014517,2]
[334715564,1723499441576,-500.0,0.00014517,2]
[334715565,1723499441585,-500.0,0.00014517,2]
[334715566,1723499441594,-674.96,0.00014517,2]
[334715567,1723499441604,-500.0,0.00014517,2]
[334715568,1723499441617,-500.0,0.00014517,2]
[334715569,1723499441627,-500.0,0.00014517,2]
[334715570,1723499441635,-500.0,0.00014517,2]
[334715571,1723499441645,-507.8,0.00014517,2]
[334715572,1723499441655,-893.36,0.00014517,2]
[334715573,1723499441664,-754.31,0.00014517,2]
[334715574,1723499441674,-500.0,0.00014518,2]
[334715575,1723499441683,-500.0,0.00014518,2]
[334715576,1723499441692,-293.75168834,0.00014518,2]
[334715577,1723499441701,-500.0,0.00014518,2]
[334715578,1723499441711,-500.0,0.00014518,2]
[334715579,1723499441720,-500.0,0.00014518,2]
[334715580,1723499441730,-861.65,0.00014518,2]
[334715581,1723499441744,-500.0,0.00014518,2]
[334715582,1723499441754,-500.0,0.00014518,2]
[334715583,1723499441763,-500.0,0.00014518,2]
[334715584,1723499441774,-500.0,0.00014518,2]
[334715585,1723499441783,-631.25,0.00014518,2]
[334715586,1723499441794,-500.0,0.00014518,2]
[334715587,1723499441803,-683.68,0.00014518,2]
[334715588,1723499441814,-500.0,0.00014518,2]
[334715589,1723499441825,-500.0,0.00014518,2]
[334715590,1723499441835,-500.0,0.00014518,2]
[334715591,1723499441844,-500.0,0.00014518,2]
[334715592,1723499441855,-500.0,0.00014518,2]
[334715593,1723499441864,-921.2,0.00014518,2]
[334715594,1723499441873,-500.0,0.00014518,2]
[334715595,1723499441882,-500.0,0.00014518,2]
[334715596,1723499441892,-500.0,0.00014518,2]
[334715597,1723499441901,-500.0,0.00014518,2]
[334715598,1723499441910,-639.1,0.00014518,2]
[334715599,1723499441920,-500.0,0.00014518,2]
[334715600,1723499441929,-632.75,0.00014518,2]
[334715601,1723499441939,-500.0,0.00014518,2]
[334715602,1723499441948,-558.09,0.00014518,2]
[334715603,1723499441958,-500.0,0.00014518,2]
[334715604,1723499441968,-500.0,0.00014518,2]
[334715605,1723499441977,-500.0,0.00014518,2]
[334715606,1723499441987,-500.0,0.00014518,2]
[334715607,1723499441997,-500.0,0.00014518,2]
[334715608,1723499442007,-500.0,0.00014518,2]
[334715609,1723499442016,-500.0,0.00014518,2]
[334715610,1723499442025,-960.47,0.00014518,2]
[334715611,1723499442035,-500.0,0.00014518,2]
[334715612,1723499442044,-500.0,0.00014518,2]
[334715613,1723499442054,-500.0,0.00014518,2]
[334715614,1723499442063,-500.0,0.00014518,2]
[334715615,1723499442074,-500.0,0.00014518,2]
[334715616,1723499442083,-500.0,0.00014518,2]
[334715617,1723499442093,-500.0,0.00014518,2]
[334715618,1723499442102,-500.0,0.00014518,2]
[334715619,1723499442114,-648.47,0.00014518,2]
[334715620,1723499442124,-500.0,0.00014518,2]
[334715621,1723499442133,-994.58,0.00014518,2]
[334715622,1723499442142,-950.6,0.00014518,2]
[334715623,1723499442152,-500.0,0.00014518,2]
[334715624,1723499442161,-428.29888972,0.00014518,2]
[334715625,1723499442170,-500.0,0.00014518,2]
[334715626,1723499442180,-500.0,0.00014518,2]
[334715627,1723499442189,-539.57,0.00014518,2]
[334715628,1723499442199,-500.0,0.00014518,2]
[334715629,1723499442209,-629.79,0.00014518,2]
[334715630,1723499442218,-1272.77,0.00014518,2]
[334715631,1723499442227,-500.0,0.00014518,2]
[334715632,1723499442236,-1194.91,0.00014518,2]
[334715633,1723499442246,-500.0,0.00014518,2]
[334715634,1723499442256,-1805.14,0.00014518,2]
[334715635,1723499442266,-1054.43,0.00014518,2]
[334715636,1723499442275,-500.0,0.00014526,2]
[334715637,1723499442284,-500.0,0.00014527,2]
[334715638,1723499442294,-366.28,0.00014527,2]
[334715639,1723499442304,-500.0,0.00014528,2]
[334715640,1723499442314,-163.37809937,0.00014528,2]
[334715641,1723499442323,-500.0,0.00014528,2]
[334715642,1723499442333,-572.44,0.00014528,2]
[334715643,1723499442343,-500.0,0.00014537,2]
[334715644,1723499442352,-540.5,0.00014537,2]
[334715645,1723499442365,-500.0,0.00014537,2]
[334715646,1723499442375,-500.0,0.00014537,2]
[334715647,1723499442384,-500.0,0.00014537,2]
[334715648,1723499442394,-500.0,0.00014537,2]
[334715649,1723499442404,-505.0683132,0.00014537,2]
[334715650,1723499442413,-630.41046164,0.00014537,2]
[334715651,1723499442423,-3322.48486469,0.00014546,2]
[334715652,1723499442434,-3322.48486469,0.00014619,2]
[334715653,1723499442444,-3322.48486469,0.00014692,2]
[334715654,1723499442455,-153.0,0.000147,2]
[334715655,1723499442464,-153.0,0.000147,2]
[334715656,1723499442474,-500.0,0.00014702,2]
[334715657,1723499442484,-1989.23,0.00014702,2]
[334715658,1723499442493,-7547.94,0.00014702,2]
[334715659,1723499442504,-1217.79,0.00014702,2]
[334715660,1723499442513,-742.73,0.00014702,2]
[334715661,1723499442524,-1371.06,0.00014702,2]
[334715662,1723499442534,-500.0,0.00014709,2]
[334715663,1723499442545,-500.0,0.00014709,2]
[334715664,1723499442554,-500.0,0.00014709,2]
[334715665,1723499442564,-500.0,0.00014709,2]
[334715666,1723499442574,-500.0,0.00014709,2]
[334715667,1723499442584,-500.0,0.00014709,2]
[334715668,1723499442594,-388.58388227,0.00014709,2]
[334715669,1723499442603,-577.68,0.00014709,2]
[334715670,1723499442614,-552.1964244,0.00014709,2]
[334715671,1723499442623,-500.0,0.00014709,2]
[334715672,1723499442633,-500.0,0.00014709,2]
[334715673,1723499442643,-500.0,0.00014709,2]
[334715674,1723499442652,-500.0,0.00014709,2]
[334715675,1723499442662,-500.0,0.00014709,2]
[334715676,1723499442672,-500.0,0.00014709,2]
[334715677,1723499442681,-500.0,0.00014709,2]
[334715678,1723499442691,-839.62,0.00014711,2]
[334715679,1723499442700,-869.15,0.00014712,2]
[334715680,1723499442711,-500.0,0.00014712,2]
[334715681,1723499442722,-2601.84295731,0.00014712,2]
[334715682,1723499442742,-1808.27704269,0.00014712,2]
[334715683,1723499442753,-880.8229573,0.00014712,2]
[334715684,1723499442765,-487.1270427,0.00014712,2]
[334715685,1723499442775,-1526.8429573,0.00014712,2]
[334715686,1723499442787,-2874.8270427,0.00014712,2]
[334715687,1723499442796,-1202.48,0.00014712,2]
[334715688,1723499442807,-1532.89,0.00014712,2]
[334715689,1723499442816,-500.0,0.00014712,2]
[334715690,1723499442826,-500.0,0.00014712,2]
[334715691,1723499442836,-386.89295371,0.00014712,2]
[334715717,1723499465074,1842.12174007,0.0001212,2]
[334715718,1723499468255,154.84363402,0.0001212,2]
[334715719,1723499470330,664.2961566,0.0001212,2]
[334715720,1723499471048,1091.99358002,0.00014,2]
[334715722,1723499551901,240.84967759,9.999e-05,2]
[334715723,1723499605278,522.39318645,0.0001212,2]
[334715724,1723499611005,6439.5209419,0.0001212,2]
[334715725,1723499612536,1067.5370934,0.0001212,2]
[334715726,1723499616051,1091.99358002,0.00014,2]
[334715727,1723499617804,273.37336231,9.9e-05,2]
[334715728,1723499619882,342.52439147,0.0001212,2]
[334715729,1723499624818,600.8534117,0.0001212,2]
[334715730,1723499628652,479.70011217,0.0001212,2]
[334715732,1723499707508,247.4785538,0.0001353,2]
[334715733,1723499709417,156.64123903,0.0001212,2]
[334715734,1723499716690,194.5131586,0.00013429,2]
[334715735,1723499719458,234.95688653,9.999e-05,2]
[334715736,1723499733280,319.72766707,9.999e-05,2]
[334715737,1723499744541,188.2335741,9.999e-05,2]
[334715738,1723499747654,209.86849569,9.999e-05,2]
[334715739,1723499799414,159.27209445,9.999e-05,2]
[334715740,1723499973449,1630.23174338,0.0001212,2]
[334715741,1723500090130,267.32984024,9.999e-05,2]
[334715766,1723500632383,-160.985768,0.00014247,2]
[334715768,1723500632393,-164.632607,0.00014247,2]
[334715770,1723500632402,-290.24425045,0.000144,2]
[334715813,1723500638587,-1749.76574716,0.000144,2]
[334715814,1723500638597,-300.0,0.00014406,2]
[334715815,1723500638606,-500.0,0.00014407,2]
[334715816,1723500638615,-500.0,0.00014407,2]
[334715817,1723500638625,-500.0,0.00014407,2]
[334715818,1723500638634,-389.20537629,0.00014407,2]
[334715819,1723500638643,-500.0,0.00014407,2]
[334715820,1723500638652,-352.86540268,0.00014407,2]
[334715821,1723500638661,-500.0,0.00014407,2]
[334715822,1723500638670,-500.0,0.00014407,2]
[334715823,1723500638679,-500.0,0.00014407,2]
[334715824,1723500638688,-500.0,0.00014407,2]
[334715825,1723500638697,-500.0,0.00014407,2]
[334715826,1723500638706,-219.48918743,0.00014407,2]
[334715827,1723500638715,-247.81692465,0.00014407,2]
[334715828,1723500638725,-500.0,0.00014407,2]
[334715829,1723500638734,-381.08801841,0.00014407,2]
[334715830,1723500638743,-500.0,0.00014407,2]
[334715831,1723500638752,-500.0,0.00014407,2]
[334715832,1723500638763,-500.0,0.00014407,2]
[334715833,1723500638773,-500.0,0.00014407,2]
[334715834,1723500638783,-500.0,0.00014407,2]
[334715835,1723500638794,-500.0,0.00014407,2]
[334715836,1723500638804,-500.0,0.00014407,2]
[334715837,1723500638814,-250.0,0.00014407,2]
[334715838,1723500638823,-1225.62,0.00014407,2]
[334715839,1723500638832,-748.2,0.00014407,2]
[334715840,1723500638841,-98497.8477049,0.00014408,2]
[334715841,1723500638850,-22570.867895,0.00014415,2]
[334715842,1723500638861,-196995.69541,0.00014415,2]
[334715843,1723500638871,-98497.8477049,0.00014416,2]
[334715844,1723500638881,-607.05619012,0.00014417,2]
[334715845,1723500638890,-500.0,0.00014417,2]
[334715846,1723500638899,-1914.43,0.00014417,2]
[334715847,1723500638909,-500.0,0.00014417,2]
[334715848,1723500638918,-7583.67,0.00014417,2]
[334715849,1723500638927,-842.55,0.00014417,2]
[334715850,1723500638936,-1375.24,0.00014417,2]
[334715851,1723500638945,-500.0,0.00014426,2]
[334715852,1723500638954,-402.91190456,0.00014426,2]
[334715853,1723500638963,-500.0,0.00014426,2]
[334715854,1723500638972,-500.0,0.00014426,2]
[334715855,1723500638981,-500.0,0.00014426,2]
[334715856,1723500638990,-500.0,0.00014426,2]
[334715857,1723500638999,-681.21,0.00014426,2]
[334715858,1723500639009,-500.0,0.00014426,2]
[334715859,1723500639018,-500.0,0.00014426,2]
[334715860,1723500639028,-500.0,0.00014426,2]
[334715861,1723500639037,-500.0,0.00014426,2]
[334715862,1723500639046,-500.0,0.00014426,2]
[334715863,1723500639055,-500.0,0.00014426,2]
[334715864,1723500639065,-427.35879399,0.00014426,2]
[334715865,1723500639077,-72.64120601,0.00014426,2]
[334715866,1723500639091,-500.0,0.00014426,2]
[334715867,1723500639100,-605.56359393,0.00014426,2]
[334715868,1723500639111,-4.12640607,0.00014426,2]
[334715869,1723500639120,-740.88,0.00014426,2]
[334715870,1723500639129,-578.96,0.00014426,2]
[334715871,1723500639139,-500.0,0.00014426,2]
[334715872,1723500639148,-126.03359393,0.00014426,2]
[334715873,1723500639162,-373.96640607,0.00014426,2]
[334715874,1723500639172,-500.0,0.00014426,2]
[334715875,1723500639181,-500.0,0.00014426,2]
[334715876,1723500639190,-500.0,0.00014426,2]
[334715877,1723500639199,-500.0,0.00014426,2]
[334715878,1723500639208,-500.0,0.00014426,2]
[334715879,1723500639217,-500.0,0.00014426,2]
[334715880,1723500639228,-500.0,0.00014426,2]
[334715881,1723500639239,-500.0,0.00014426,2]
[334715882,1723500639249,-500.0,0.00014426,2]
[334715883,1723500639261,-884.05,0.00014426,2]
[334715884,1723500639270,-505.81028186,0.00014426,2]
[334715885,1723500639279,-500.0,0.00014426,2]
[334715886,1723500639288,-500.0,0.00014426,2]
[334715887,1723500639298,-500.0,0.00014426,2]
[334715888,1723500639307,-500.0,0.00014426,2]
[334715889,1723500639316,-500.0,0.00014426,2]
[334715890,1723500639472,-504.51658871,0.00014426,2]
[334715891,1723500639483,-523.76271671,0.00014426,2]
[334715892,1723500639492,-500.0,0.00014426,2]
[334715893,1723500639501,-500.0,0.00014426,2]
[334715894,1723500639511,-500.0,0.00014426,2]
[334715895,1723500639520,-500.0,0.00014426,2]
[334715896,1723500639529,-675.05,0.00014426,2]
[334715897,1723500639539,-500.0,0.00014426,2]
[334715898,1723500639547,-7918.47518305,0.00014426,2]
[334715945,1723500640498,-238.04481695,0.00014426,2]
[334715947,1723500640507,-272.34864233,0.00014426,2]
[334715949,1723500640517,-500.0,0.00014426,2]
[334715951,1723500640526,-500.0,0.00014426,2]
[334715953,1723500640536,-538.49,0.00014426,2]
[334715955,1723500640545,-2483.89,0.00014426,2]
[334715957,1723500640555,-779.69,0.00014426,2]
[334715959,1723500640565,-500.0,0.00014426,2]
[334715961,1723500640575,-1598.76,0.00014426,2]
[334715963,1723500640584,-913.9,0.00014426,2]
[334715965,1723500640594,-500.0,0.00014426,2]
[334715967,1723500640604,-1393.32,0.00014426,2]
[334715969,1723500640614,-501.68433035,0.00014426,2]
[334715971,1723500640624,-874.3,0.00014426,2]
[334715973,1723500640634,-1182.83,0.00014426,2]
[334715976,1723500640644,-500.0,0.00014426,2]
[334715978,1723500640653,-500.0,0.00014426,2]
[334715980,1723500640663,-500.0,0.00014426,2]
[334715982,1723500640674,-500.0,0.00014426,2]
[334715984,1723500640684,-872.75371216,0.00014426,2]
[334715987,1723500640702,-103.44628784,0.00014426,2]
[334715989,1723500640714,-500.0,0.00014426,2]
[334715991,1723500640725,-500.0,0.00014426,2]
[334715993,1723500640736,-1484.53,0.00014426,2]
[334715995,1723500640747,-4438.87,0.00014426,2]
[334715997,1723500640757,-500.0,0.00014426,2]
[334715999,1723500640766,-1378.66,0.00014426,2]
[334716001,1723500640776,-1166.27,0.00014426,2]
[334716003,1723500640785,-848.12,0.00014426,2]
[334716005,1723500640795,-500.0,0.00014426,2]
[334716007,1723500640804,-4426.96,0.00014426,2]
[334716009,1723500640814,-504.02234705,0.00014426,2]
[334716011,1723500640823,-1211.79,0.00014426,2]
[334716013,1723500640832,-500.0,0.00014426,2]
[334716015,1723500640843,-500.0,0.00014426,2]
[334716017,1723500640852,-500.0,0.00014426,2]
[334716019,1723500640862,-500.0,0.00014426,2]
[334716021,1723500640871,-1545.32,0.00014426,2]
[334716023,1723500640881,-864.87,0.00014426,2]
[334716025,1723500640890,-500.0,0.00014426,2]
[334716027,1723500640899,-500.0,0.00014426,2]
[334716029,1723500640908,-877.3,0.00014426,2]
[334716031,1723500640917,-1474.26,0.00014426,2]
[334716033,1723500640926,-500.0,0.00014426,2]
[334716035,1723500640938,-500.17502496,0.00014426,2]
[334716037,1723500640947,-546.69468098,0.00014426,2]
[334716039,1723500640956,-4170.09,0.00014426,2]
[334716041,1723500640965,-500.0,0.00014426,2]
[334716043,1723500640974,-500.0,0.00014426,2]
[334716045,1723500640983,-500.0,0.00014426,2]
[334716047,1723500640992,-506.98815353,0.00014426,2]
[334716049,1723500641001,-500.0,0.00014426,2]
[334716051,1723500641011,-600.84,0.00014426,2]
[334716053,1723500641020,-504.17183432,0.00014426,2]
[334716056,1723500641031,-670.77,0.00014426,2]
[334716058,1723500641040,-500.0,0.00014426,2]
[334716060,1723500641051,-500.0,0.00014426,2]
[334716062,1723500641061,-1546.52,0.00014426,2]
[334716064,1723500641072,-500.0,0.00014426,2]
[334716066,1723500641086,-500.0,0.00014426,2]
[334716068,1723500641097,-500.0,0.00014426,2]
[334716070,1723500641108,-746.78,0.00014426,2]
[334716073,1723500641119,-500.0,0.00014426,2]
[334716075,1723500641131,-500.0,0.00014426,2]
[334716077,1723500641141,-913.2,0.00014426,2]
[334716079,1723500641151,-1626.19,0.00014426,2]
[334716081,1723500641162,-500.0,0.00014426,2]
[334716083,1723500641171,-500.0,0.00014426,2]
[334716085,1723500641181,-500.0,0.00014426,2]
[334716087,1723500641190,-500.0,0.00014426,2]
[334716089,1723500641199,-1428.6,0.00014426,2]
[334716091,1723500641210,-722.08,0.00014426,2]
[334716093,1723500641221,-500.0,0.00014426,2]
[334716096,1723500641233,-500.0,0.00014426,2]
[334716098,1723500641244,-500.0,0.00014426,2]
[334716100,1723500641254,-1058.05,0.00014426,2]
[334716102,1723500641264,-822.45,0.00014426,2]
[334716104,1723500641273,-500.0,0.00014426,2]
[334716105,1723500641283,-500.0,0.00014426,2]
[334716107,1723500641292,-532.56160692,0.00014426,2]
[334716109,1723500641301,-500.0,0.00014426,2]
[334716112,1723500641312,-500.0,0.00014426,2]
[334716114,1723500641321,-500.0,0.00014426,2]
[334716116,1723500641330,-500.0,0.00014426,2]
[334716118,1723500641340,-505.70149761,0.00014426,2]
[334716120,1723500641351,-500.0,0.00014426,2]
[334716122,1723500641361,-585.53,0.00014427,2]
[334716124,1723500641371,-2367.34,0.00014427,2]
[334716126,1723500641380,-3448.12,0.00014427,2]
[334716128,1723500641390,-500.0,0.00014427,2]
[334716130,1723500641399,-500.0,0.00014427,2]
[334716132,1723500641409,-1128.85,0.00014427,2]
[334716134,1723500641419,-500.0,0.00014427,2]
[334716136,1723500641431,-500.0,0.00014427,2]
[334716138,1723500641441,-500.0,0.00014427,2]
[334716141,1723500641452,-548.42,0.00014427,2]
[334716143,1723500641462,-554.41,0.00014427,2]
[334716145,1723500641471,-500.0,0.00014427,2]
[334716147,1723500641482,-1080.33,0.00014427,2]
[334716149,1723500641491,-2063.03,0.00014427,2]
[334716151,1723500641500,-3374.0,0.00014427,2]
[334716153,1723500641510,-500.0,0.00014427,2]
[334716155,1723500641520,-500.0,0.00014427,2]
[334716157,1723500641529,-1547.53,0.00014427,2]
[334716159,1723500641538,-1055.27,0.00014427,2]
[334716161,1723500641547,-500.0,0.00014427,2]
[334716163,1723500641556,-500.0,0.00014427,2]
[334716165,1723500641567,-500.0,0.00014427,2]
[334716167,1723500641576,-500.0,0.00014427,2]
[334716169,1723500641587,-741.62,0.00014428,2]
[334716171,1723500641596,-635.01,0.00014428,2]
[334716173,1723500641605,-500.0,0.00014428,2]
[334716175,1723500641615,-500.0,0.00014428,2]
[334716177,1723500641624,-500.0,0.00014428,2]
[334716179,1723500641634,-500.0,0.00014428,2]
[334716181,1723500641645,-500.0,0.00014428,2]
[334716183,1723500641655,-501.73,0.00014428,2]
[334716185,1723500641664,-642.91,0.00014428,2]
[334716187,1723500641673,-636.52,0.00014428,2]
[334716189,1723500641683,-373.28333983,0.00014428,2]
[334716191,1723500641692,-561.42,0.00014428,2]
[334716193,1723500641701,-500.0,0.00014428,2]
[334716196,1723500641711,-500.0,0.00014428,2]
[334716198,1723500641720,-500.0,0.00014428,2]
[334716200,1723500641729,-500.0,0.00014428,2]
[334716201,1723500641739,-500.0,0.00014428,2]
[334716202,1723500641749,-966.19,0.00014428,2]
[334716203,1723500641758,-500.0,0.00014428,2]
[334716204,1723500641768,-500.0,0.00014428,2]
[334716205,1723500641777,-552.98054679,0.00014428,2]
[334716206,1723500641786,-500.0,0.00014428,2]
[334716207,1723500641795,-500.0,0.00014428,2]
[334716208,1723500641804,-500.0,0.00014428,2]
[334716209,1723500641813,-500.0,0.00014428,2]
[334716210,1723500641822,-500.0,0.00014428,2]
[334716211,1723500641834,-500.0,0.00014428,2]
[334716212,1723500641844,-500.0,0.00014428,2]
[334716213,1723500641855,-500.0,0.00014428,2]
[334716214,1723500641865,-500.0,0.00014428,2]
[334716215,1723500641874,-512.58,0.00014428,2]
[334716216,1723500641884,-500.0,0.00014428,2]
[334716217,1723500641894,-500.0,0.00014428,2]
[334716218,1723500641903,-502.36932696,0.00014428,2]
[334716219,1723500641913,-506.12883141,0.00014428,2]
[334716220,1723500641922,-502.68630497,0.00014428,2]
[334716221,1723500641931,-500.0,0.00014428,2]
[334716222,1723500641941,-652.33,0.00014428,2]
[334716223,1723500641951,-500.0,0.00014428,2]
[334716224,1723500641960,-1021.33,0.00014428,2]
[334716225,1723500641969,-1001.61,0.00014428,2]
[334716226,1723500641978,-500.0,0.00014428,2]
[334716227,1723500641988,-1122.4,0.00014428,2]
[334716228,1723500641998,-1290.97,0.00014428,2]
[334716229,1723500642008,-500.0,0.00014428,2]